[Event "Titled Tuesday Blitz April 18 Early 2023"]
[White "Corredor Castellanos, Camilo"]
[Black "Thiel, Thomas"]
[WhiteFideId "4425871"]
[BlackFideId "4615964"]
[WhiteElo "1994"]
[BlackElo "2168"]
[Result "1-0"]
[Round "05"]
[TimeControl "180+2"]
[Date "2023.04.18"]
[WhiteClock "0:01:47"]
[BlackClock "0:02:18"]

1. e4 {[%clk 0:03:00]}  d5 {[%clk 0:02:54]} 2. exd5 {[%clk 0:03:00]}  Nf6 {[%clk 0:02:49]} 3. d4 {[%clk 0:02:59]}  Nxd5 {[%clk 0:02:48]} 4. c4 {[%clk 0:02:59]}  Nb6 {[%clk 0:02:48]} 5. Nc3 {[%clk 0:02:59]}  e5 {[%clk 0:02:44]} 6. dxe5 {[%clk 0:02:32]}  Qxd1+ {[%clk 0:02:45]} 7. Nxd1 {[%clk 0:02:24]}  Nc6 {[%clk 0:02:45]} 8. f4 {[%clk 0:02:08]}  Be6 {[%clk 0:02:43]} 9. Nf3 {[%clk 0:02:07]}  O-O-O {[%clk 0:02:43]} 10. Be2 {[%clk 0:02:06]}  Bb4+ {[%clk 0:02:37]} 11. Bd2 {[%clk 0:02:05]}  Nd4 {[%clk 0:02:24]} 12. Bxb4 {[%clk 0:01:46]}  Nc2+ {[%clk 0:02:22]} 13. Kf2 {[%clk 0:01:47]}  Nxa1 {[%clk 0:02:18]} 14. Ne3 {[%clk 0:01:47]} 1-0


[Site "https://www.chess.com"]

[Event "Titled Tuesday Blitz April 18 Early 2023"]
[White "ryutherunner"]
[Black "Ng, Gary"]
[BlackFideId "2604914"]
[WhiteElo "2119"]
[BlackElo "2304"]
[Result "0-1"]
[Round "05"]
[TimeControl "180+2"]
[Date "2023.04.18"]
[WhiteClock "0:00:25"]
[BlackClock "0:00:34"]

1. d4 {[%clk 0:03:00]}  Nf6 {[%clk 0:03:00]} 2. c4 {[%clk 0:03:00]}  e6 {[%clk 0:03:01]} 3. Nf3 {[%clk 0:03:00]}  b6 {[%clk 0:03:00]} 4. Nc3 {[%clk 0:03:01]}  Bb4 {[%clk 0:03:00]} 5. Qc2 {[%clk 0:03:00]}  Bb7 {[%clk 0:02:59]} 6. a3 {[%clk 0:02:59]}  Bxc3+ {[%clk 0:02:58]} 7. Qxc3 {[%clk 0:02:59]}  O-O {[%clk 0:02:57]} 8. e3 {[%clk 0:03:00]}  Ne4 {[%clk 0:02:55]} 9. Qc2 {[%clk 0:03:00]}  f5 {[%clk 0:02:56]} 10. Bd3 {[%clk 0:02:59]}  d6 {[%clk 0:02:57]} 11. Bd2 {[%clk 0:02:57]}  Nd7 {[%clk 0:02:57]} 12. b4 {[%clk 0:02:57]}  Ndf6 {[%clk 0:02:55]} 13. h3 {[%clk 0:02:56]}  Qe7 {[%clk 0:02:52]} 14. Bxe4 {[%clk 0:02:35]}  Nxe4 {[%clk 0:02:47]} 15. Bc3 {[%clk 0:02:33]}  a5 {[%clk 0:02:40]} 16. b5 {[%clk 0:02:32]}  Rac8 {[%clk 0:02:14]} 17. a4 {[%clk 0:02:02]}  c6 {[%clk 0:02:02]} 18. Qb3 {[%clk 0:01:39]}  Nxc3 {[%clk 0:01:56]} 19. Qxc3 {[%clk 0:01:39]}  cxb5 {[%clk 0:01:57]} 20. axb5 {[%clk 0:01:38]}  d5 {[%clk 0:01:48]} 21. Ne5 {[%clk 0:01:32]}  dxc4 {[%clk 0:01:47]} 22. O-O {[%clk 0:01:29]}  Qb4 {[%clk 0:01:28]} 23. Qxb4 {[%clk 0:01:21]}  axb4 {[%clk 0:01:29]} 24. Nd7 {[%clk 0:01:21]}  b3 {[%clk 0:01:08]} 25. Nxb6 {[%clk 0:01:09]}  Be4 {[%clk 0:01:02]} 26. Na4 {[%clk 0:01:05]}  c3 {[%clk 0:01:00]} 27. Nc5 {[%clk 0:01:00]}  b2 {[%clk 0:00:56]} 28. Ra3 {[%clk 0:00:34]}  c2 {[%clk 0:00:43]} 29. b6 {[%clk 0:00:27]}  b1=Q {[%clk 0:00:36]} 30. b7 {[%clk 0:00:24]}  Qxf1+ {[%clk 0:00:32]} 31. Kxf1 {[%clk 0:00:24]}  c1=Q+ {[%clk 0:00:32]} 32. Ke2 {[%clk 0:00:24]}  Qxa3 {[%clk 0:00:33]} 33. bxc8=Q {[%clk 0:00:24]}  Rxc8 {[%clk 0:00:33]} 34. Nxe4 {[%clk 0:00:24]}  fxe4 {[%clk 0:00:33]} 35. f3 {[%clk 0:00:24]}  Rc2+ {[%clk 0:00:33]} 36. Kd1 {[%clk 0:00:25]}  Qc1# {[%clk 0:00:34]} 0-1


[Site "https://www.chess.com"]

[Event "Titled Tuesday Blitz April 18 Early 2023"]
[White "Rosenberg, Evan S"]
[Black "Barria Santos, Jose Guilherme"]
[WhiteFideId "2019299"]
[BlackFideId "1939300"]
[WhiteElo "2286"]
[BlackElo "2266"]
[Result "1-0"]
[Round "05"]
[TimeControl "180+2"]
[Date "2023.04.18"]
[WhiteClock "0:00:30"]
[BlackClock "0:00:26"]

1. d4 {[%clk 0:03:00]}  Nf6 {[%clk 0:02:57]} 2. Nf3 {[%clk 0:03:01]}  g6 {[%clk 0:02:57]} 3. Nc3 {[%clk 0:03:01]}  Bg7 {[%clk 0:02:57]} 4. e4 {[%clk 0:03:01]}  d6 {[%clk 0:02:57]} 5. Be2 {[%clk 0:03:01]}  O-O {[%clk 0:02:57]} 6. O-O {[%clk 0:03:02]}  c5 {[%clk 0:02:55]} 7. d5 {[%clk 0:03:02]}  a6 {[%clk 0:02:55]} 8. a4 {[%clk 0:03:01]}  Bg4 {[%clk 0:02:41]} 9. Re1 {[%clk 0:02:54]}  Nbd7 {[%clk 0:02:39]} 10. h3 {[%clk 0:02:54]}  Bxf3 {[%clk 0:02:40]} 11. Bxf3 {[%clk 0:02:54]}  Ne5 {[%clk 0:02:40]} 12. Be2 {[%clk 0:02:54]}  Rb8 {[%clk 0:02:40]} 13. a5 {[%clk 0:02:41]}  Ne8 {[%clk 0:02:15]} 14. Bg5 {[%clk 0:02:35]}  b5 {[%clk 0:02:10]} 15. axb6 {[%clk 0:02:34]}  Rxb6 {[%clk 0:02:10]} 16. Ra2 {[%clk 0:02:28]}  Nc7 {[%clk 0:02:09]} 17. Qd2 {[%clk 0:02:22]}  Nb5 {[%clk 0:02:09]} 18. Nxb5 {[%clk 0:02:13]}  axb5 {[%clk 0:02:09]} 19. Ra7 {[%clk 0:02:14]}  Re8 {[%clk 0:02:01]} 20. Qa5 {[%clk 0:02:08]}  h6 {[%clk 0:01:52]} 21. Bxe7 {[%clk 0:02:02]}  Qb8 {[%clk 0:01:37]} 22. Ra1 {[%clk 0:01:45]}  Kh7 {[%clk 0:01:30]} 23. f4 {[%clk 0:01:20]}  Nc4 {[%clk 0:01:30]} 24. Bxc4 {[%clk 0:01:19]}  bxc4 {[%clk 0:01:31]} 25. e5 {[%clk 0:01:12]}  Rxb2 {[%clk 0:01:27]} 26. Bxd6 {[%clk 0:01:07]}  Qc8 {[%clk 0:01:12]} 27. Rxf7 {[%clk 0:01:00]}  Rb7 {[%clk 0:00:49]} 28. Rxb7 {[%clk 0:00:52]}  Qxb7 {[%clk 0:00:50]} 29. Qxc5 {[%clk 0:00:51]}  Rc8 {[%clk 0:00:48]} 30. Qd4 {[%clk 0:00:32]}  c3 {[%clk 0:00:42]} 31. Ra7 {[%clk 0:00:32]}  Qb1+ {[%clk 0:00:37]} 32. Kh2 {[%clk 0:00:31]}  Qxc2 {[%clk 0:00:34]} 33. e6 {[%clk 0:00:31]}  Rg8 {[%clk 0:00:26]} 34. Be5 {[%clk 0:00:30]} 1-0


[Site "https://www.chess.com"]

[Event "Titled Tuesday Blitz April 18 Early 2023"]
[White "lluiss"]
[Black "Fabris, Alberto"]
[BlackFideId "801348"]
[WhiteElo "2275"]
[BlackElo "2112"]
[Result "1-0"]
[Round "05"]
[TimeControl "180+2"]
[Date "2023.04.18"]
[WhiteClock "0:00:02"]
[BlackClock "0:00:02"]

1. Nf3 {[%clk 0:03:00]}  Nf6 {[%clk 0:02:59]} 2. c4 {[%clk 0:03:00]}  e6 {[%clk 0:02:58]} 3. b3 {[%clk 0:02:59]}  b6 {[%clk 0:02:54]} 4. g3 {[%clk 0:02:58]}  Bb7 {[%clk 0:02:54]} 5. Bg2 {[%clk 0:02:59]}  Be7 {[%clk 0:02:54]} 6. Bb2 {[%clk 0:02:59]}  O-O {[%clk 0:02:54]} 7. O-O {[%clk 0:02:59]}  d5 {[%clk 0:02:53]} 8. e3 {[%clk 0:02:59]}  c5 {[%clk 0:02:51]} 9. Qe2 {[%clk 0:02:59]}  Nc6 {[%clk 0:02:47]} 10. Rd1 {[%clk 0:02:58]}  Qc7 {[%clk 0:02:44]} 11. Nc3 {[%clk 0:02:57]}  a6 {[%clk 0:02:43]} 12. cxd5 {[%clk 0:02:53]}  exd5 {[%clk 0:02:39]} 13. d4 {[%clk 0:02:53]}  Rfd8 {[%clk 0:02:31]} 14. Rac1 {[%clk 0:02:51]}  Rac8 {[%clk 0:02:29]} 15. dxc5 {[%clk 0:02:44]}  bxc5 {[%clk 0:02:28]} 16. Na4 {[%clk 0:02:44]}  Na7 {[%clk 0:02:06]} 17. Bxf6 {[%clk 0:02:41]}  Bxf6 {[%clk 0:01:54]} 18. Rxc5 {[%clk 0:02:35]}  Qd6 {[%clk 0:01:42]} 19. Rdc1 {[%clk 0:02:12]}  Nb5 {[%clk 0:01:35]} 20. Rxc8 {[%clk 0:02:05]}  Rxc8 {[%clk 0:01:34]} 21. Rxc8+ {[%clk 0:02:05]}  Bxc8 {[%clk 0:01:35]} 22. Qc2 {[%clk 0:02:05]}  Be6 {[%clk 0:01:32]} 23. Qc5 {[%clk 0:01:58]}  h6 {[%clk 0:01:19]} 24. Qxd6 {[%clk 0:01:55]}  Nxd6 {[%clk 0:01:20]} 25. Bf1 {[%clk 0:01:38]}  a5 {[%clk 0:01:08]} 26. Nc5 {[%clk 0:01:29]}  Kf8 {[%clk 0:01:07]} 27. Bd3 {[%clk 0:01:20]}  Ke7 {[%clk 0:01:06]} 28. Nd4 {[%clk 0:01:20]}  Bd7 {[%clk 0:00:49]} 29. Kf1 {[%clk 0:00:57]}  Kd8 {[%clk 0:00:32]} 30. Ke2 {[%clk 0:00:53]}  Kc7 {[%clk 0:00:32]} 31. f3 {[%clk 0:00:42]}  g6 {[%clk 0:00:23]} 32. a3 {[%clk 0:00:29]}  Be8 {[%clk 0:00:21]} 33. b4 {[%clk 0:00:27]}  axb4 {[%clk 0:00:21]} 34. axb4 {[%clk 0:00:28]}  Kb6 {[%clk 0:00:21]} 35. Kd2 {[%clk 0:00:20]}  Be7 {[%clk 0:00:17]} 36. Kc3 {[%clk 0:00:15]}  Nb5+ {[%clk 0:00:13]} 37. Nxb5 {[%clk 0:00:15]}  Bxb5 {[%clk 0:00:13]} 38. Bc2 {[%clk 0:00:08]}  Bxc5 {[%clk 0:00:07]} 39. bxc5+ {[%clk 0:00:08]}  Kxc5 {[%clk 0:00:07]} 40. Bb3 {[%clk 0:00:08]}  Bc6 {[%clk 0:00:06]} 41. f4 {[%clk 0:00:06]}  Bd7 {[%clk 0:00:05]} 42. Bc2 {[%clk 0:00:05]}  g5 {[%clk 0:00:04]} 43. Bd3 {[%clk 0:00:05]}  gxf4 {[%clk 0:00:03]} 44. gxf4 {[%clk 0:00:04]}  Bg4 {[%clk 0:00:02]} 45. Bh7 {[%clk 0:00:04]}  f6 {[%clk 0:00:01]} 46. Bg8 {[%clk 0:00:03]}  Bf3 {[%clk 0:00:01]} 47. h4 {[%clk 0:00:03]}  Be4 {[%clk 0:00:01]} 48. Bf7 {[%clk 0:00:04]}  Bf3 {[%clk 0:00:01]} 49. h5 {[%clk 0:00:03]}  Be4 {[%clk 0:00:01]} 50. Bg6 {[%clk 0:00:03]}  Bf3 {[%clk 0:00:02]} 51. Bf7 {[%clk 0:00:01]}  Be4 {[%clk 0:00:02]} 52. Bg6 {[%clk 0:00:01]}  Bf3 {[%clk 0:00:02]} 53. Kd3 {[%clk 0:00:02]} 1-0


[Site "https://www.chess.com"]

[Event "Titled Tuesday Blitz April 18 Early 2023"]
[White "Winkels, Marcel"]
[Black "Clawitter, Craig"]
[WhiteFideId "1003887"]
[BlackFideId "2023105"]
[WhiteElo "1900"]
[BlackElo "2243"]
[Result "0-1"]
[Round "05"]
[TimeControl "180+2"]
[Date "2023.04.18"]
[WhiteClock "0:00:35"]
[BlackClock "0:00:11"]

1. d4 {[%clk 0:03:00]}  e6 {[%clk 0:02:59]} 2. Nc3 {[%clk 0:02:59]}  d5 {[%clk 0:02:58]} 3. Bf4 {[%clk 0:02:58]}  Nf6 {[%clk 0:02:58]} 4. Nb5 {[%clk 0:02:56]}  Na6 {[%clk 0:02:56]} 5. e3 {[%clk 0:02:57]}  Be7 {[%clk 0:02:55]} 6. Nf3 {[%clk 0:02:54]}  O-O {[%clk 0:02:50]} 7. Be2 {[%clk 0:02:53]}  Bd7 {[%clk 0:02:38]} 8. O-O {[%clk 0:02:48]}  Bxb5 {[%clk 0:02:15]} 9. Bxb5 {[%clk 0:02:46]}  Nb8 {[%clk 0:02:15]} 10. Bd3 {[%clk 0:02:42]}  c5 {[%clk 0:02:14]} 11. c3 {[%clk 0:02:41]}  Nc6 {[%clk 0:02:14]} 12. Ne5 {[%clk 0:02:29]}  Qb6 {[%clk 0:02:10]} 13. Rb1 {[%clk 0:02:27]}  Rac8 {[%clk 0:01:55]} 14. Qf3 {[%clk 0:02:25]}  Rfd8 {[%clk 0:01:08]} 15. Qh3 {[%clk 0:02:24]}  g6 {[%clk 0:00:53]} 16. Bg5 {[%clk 0:02:16]}  Qc7 {[%clk 0:00:27]} 17. Nxc6 {[%clk 0:02:08]}  Qxc6 {[%clk 0:00:23]} 18. Qh4 {[%clk 0:02:08]}  Kg7 {[%clk 0:00:20]} 19. Qh6+ {[%clk 0:01:59]}  Kg8 {[%clk 0:00:20]} 20. Qh4 {[%clk 0:01:59]}  Kg7 {[%clk 0:00:20]} 21. f3 {[%clk 0:01:49]}  cxd4 {[%clk 0:00:19]} 22. exd4 {[%clk 0:01:31]}  h5 {[%clk 0:00:19]} 23. Rfe1 {[%clk 0:01:17]}  Qb6 {[%clk 0:00:18]} 24. Kh1 {[%clk 0:01:14]}  Rd7 {[%clk 0:00:17]} 25. Re5 {[%clk 0:00:58]}  Ng8 {[%clk 0:00:17]} 26. Bxe7 {[%clk 0:00:55]}  Nxe7 {[%clk 0:00:18]} 27. Qg3 {[%clk 0:00:44]}  Nf5 {[%clk 0:00:18]} 28. Bxf5 {[%clk 0:00:44]}  exf5 {[%clk 0:00:18]} 29. Rxf5 {[%clk 0:00:43]}  Rxc3 {[%clk 0:00:16]} 30. Qe5+ {[%clk 0:00:38]}  Kh7 {[%clk 0:00:14]} 31. Qe8 {[%clk 0:00:37]}  gxf5 {[%clk 0:00:11]} 32. Qxd7 {[%clk 0:00:36]}  Qe6 {[%clk 0:00:11]} 33. Qd6 {[%clk 0:00:35]}  Qxd6 {[%clk 0:00:11]} 0-1


[Site "https://www.chess.com"]

[Event "Titled Tuesday Blitz April 18 Early 2023"]
[White "Chincholimath, Halsagar"]
[Black "Simonovic, Miroslav"]
[WhiteFideId "5022487"]
[BlackFideId "919152"]
[WhiteElo "1737"]
[BlackElo "2042"]
[Result "0-1"]
[Round "05"]
[TimeControl "180+2"]
[Date "2023.04.18"]
[WhiteClock "0:00:26"]
[BlackClock "0:00:17"]

1. e4 {[%clk 0:03:00]}  c5 {[%clk 0:02:59]} 2. Nc3 {[%clk 0:02:59]}  Nc6 {[%clk 0:03:00]} 3. f4 {[%clk 0:02:59]}  g6 {[%clk 0:02:59]} 4. Nf3 {[%clk 0:02:59]}  Bg7 {[%clk 0:03:00]} 5. Bb5 {[%clk 0:02:59]}  e6 {[%clk 0:02:57]} 6. O-O {[%clk 0:02:56]}  Nge7 {[%clk 0:02:57]} 7. a4 {[%clk 0:02:51]}  Nd4 {[%clk 0:02:57]} 8. d3 {[%clk 0:02:49]}  a6 {[%clk 0:02:53]} 9. Bc4 {[%clk 0:02:49]}  d5 {[%clk 0:02:53]} 10. Ba2 {[%clk 0:02:44]}  O-O {[%clk 0:02:44]} 11. Nxd4 {[%clk 0:02:34]}  cxd4 {[%clk 0:02:43]} 12. Ne2 {[%clk 0:02:33]}  dxe4 {[%clk 0:02:43]} 13. dxe4 {[%clk 0:02:25]}  b5 {[%clk 0:02:34]} 14. Kh1 {[%clk 0:02:13]}  Bb7 {[%clk 0:02:32]} 15. Qd3 {[%clk 0:01:59]}  Qd7 {[%clk 0:02:05]} 16. Ng3 {[%clk 0:01:59]}  bxa4 {[%clk 0:01:58]} 17. f5 {[%clk 0:01:55]}  exf5 {[%clk 0:01:55]} 18. exf5 {[%clk 0:01:55]}  Nd5 {[%clk 0:01:41]} 19. Bd2 {[%clk 0:01:45]}  Rad8 {[%clk 0:01:26]} 20. Ne4 {[%clk 0:01:42]}  Qc6 {[%clk 0:01:08]} 21. Rf2 {[%clk 0:01:11]}  gxf5 {[%clk 0:01:04]} 22. Rxf5 {[%clk 0:00:57]}  Ne3 {[%clk 0:00:59]} 23. Rxf7 {[%clk 0:00:34]}  Rxf7 {[%clk 0:00:48]} 24. Bxf7+ {[%clk 0:00:35]}  Kxf7 {[%clk 0:00:48]} 25. Ng5+ {[%clk 0:00:35]}  Ke8 {[%clk 0:00:34]} 26. Nf3 {[%clk 0:00:34]}  Qe4 {[%clk 0:00:20]} 27. Qb3 {[%clk 0:00:31]}  axb3 {[%clk 0:00:18]} 28. Ng5 {[%clk 0:00:26]}  Qxg2# {[%clk 0:00:17]} 0-1


[Site "https://www.chess.com"]

[Event "Titled Tuesday Blitz April 18 Early 2023"]
[White "Quirke, Jeffrey"]
[Black "Steenbekkers, Franck"]
[WhiteFideId "2013029"]
[BlackFideId "1004220"]
[WhiteElo "2238"]
[BlackElo "2086"]
[Result "1-0"]
[Round "05"]
[TimeControl "180+2"]
[Date "2023.04.18"]
[WhiteClock "0:00:05"]
[BlackClock "0:00:03"]

1. e4 {[%clk 0:03:00]}  c5 {[%clk 0:02:56]} 2. Nc3 {[%clk 0:02:59]}  Nc6 {[%clk 0:02:56]} 3. f4 {[%clk 0:02:58]}  g6 {[%clk 0:02:55]} 4. Nf3 {[%clk 0:02:58]}  Bg7 {[%clk 0:02:55]} 5. a4 {[%clk 0:02:58]}  e6 {[%clk 0:02:53]} 6. e5 {[%clk 0:02:57]}  f6 {[%clk 0:02:49]} 7. Bb5 {[%clk 0:02:52]}  Nge7 {[%clk 0:02:45]} 8. Ne4 {[%clk 0:02:48]}  O-O {[%clk 0:02:41]} 9. exf6 {[%clk 0:02:40]}  Bxf6 {[%clk 0:02:40]} 10. Nxf6+ {[%clk 0:02:40]}  Rxf6 {[%clk 0:02:39]} 11. d3 {[%clk 0:02:40]}  a6 {[%clk 0:02:37]} 12. Bxc6 {[%clk 0:02:32]}  Nxc6 {[%clk 0:02:36]} 13. O-O {[%clk 0:02:29]}  d5 {[%clk 0:02:35]} 14. b3 {[%clk 0:02:24]}  Qc7 {[%clk 0:02:32]} 15. g3 {[%clk 0:02:23]}  Bd7 {[%clk 0:02:31]} 16. Bb2 {[%clk 0:02:23]}  d4 {[%clk 0:02:30]} 17. Qe2 {[%clk 0:02:11]}  Raf8 {[%clk 0:02:24]} 18. Rae1 {[%clk 0:02:10]}  Rf5 {[%clk 0:02:19]} 19. Nd2 {[%clk 0:01:51]}  e5 {[%clk 0:02:11]} 20. fxe5 {[%clk 0:01:45]}  Rxf1+ {[%clk 0:02:07]} 21. Rxf1 {[%clk 0:01:45]}  Rxf1+ {[%clk 0:02:05]} 22. Qxf1 {[%clk 0:01:45]}  Qxe5 {[%clk 0:02:04]} 23. Nc4 {[%clk 0:01:21]}  Qh5 {[%clk 0:02:01]} 24. Bc1 {[%clk 0:00:44]}  b5 {[%clk 0:01:33]} 25. axb5 {[%clk 0:00:43]}  axb5 {[%clk 0:01:32]} 26. Nd6 {[%clk 0:00:42]}  Ne5 {[%clk 0:01:29]} 27. h4 {[%clk 0:00:30]}  Bc6 {[%clk 0:01:18]} 28. Bf4 {[%clk 0:00:25]}  Nf3+ {[%clk 0:01:14]} 29. Kf2 {[%clk 0:00:25]}  Qg4 {[%clk 0:00:56]} 30. Qa1 {[%clk 0:00:23]}  Nxh4 {[%clk 0:00:52]} 31. Qa7 {[%clk 0:00:18]}  Qf3+ {[%clk 0:00:47]} 32. Ke1 {[%clk 0:00:18]}  Ng2+ {[%clk 0:00:44]} 33. Kd2 {[%clk 0:00:18]}  Bd5 {[%clk 0:00:25]} 34. Qb8+ {[%clk 0:00:17]}  Kg7 {[%clk 0:00:24]} 35. Qc7+ {[%clk 0:00:17]}  Kf6 {[%clk 0:00:21]} 36. Ne8+ {[%clk 0:00:12]}  Kf5 {[%clk 0:00:18]} 37. Qe5+ {[%clk 0:00:09]}  Kg4 {[%clk 0:00:15]} 38. Qg5+ {[%clk 0:00:05]}  Kh3 {[%clk 0:00:15]} 39. Qh6+ {[%clk 0:00:06]}  Qh5 {[%clk 0:00:10]} 40. Qxh5+ {[%clk 0:00:04]}  gxh5 {[%clk 0:00:09]} 41. Bd6 {[%clk 0:00:05]}  h4 {[%clk 0:00:06]} 42. gxh4 {[%clk 0:00:03]}  Kxh4 {[%clk 0:00:06]} 43. Bxc5 {[%clk 0:00:04]}  h5 {[%clk 0:00:06]} 44. Bxd4 {[%clk 0:00:04]}  Kg4 {[%clk 0:00:06]} 45. Nf6+ {[%clk 0:00:04]}  Kf5 {[%clk 0:00:05]} 46. Nxd5 {[%clk 0:00:05]}  h4 {[%clk 0:00:04]} 47. Ne3+ {[%clk 0:00:05]}  Nxe3 {[%clk 0:00:03]} 48. Bxe3 {[%clk 0:00:05]}  h3 {[%clk 0:00:02]} 49. Bg1 {[%clk 0:00:06]}  Kg4 {[%clk 0:00:03]} 50. Bh2 {[%clk 0:00:06]}  Kf3 {[%clk 0:00:03]} 51. d4 {[%clk 0:00:06]}  Kg2 {[%clk 0:00:03]} 52. Be5 {[%clk 0:00:06]}  b4 {[%clk 0:00:03]} 53. d5 {[%clk 0:00:06]}  h2 {[%clk 0:00:03]} 54. Bxh2 {[%clk 0:00:05]} 1-0


[Site "https://www.chess.com"]

[Event "Titled Tuesday Blitz April 18 Early 2023"]
[White "Sankalan Shah"]
[Black "Osiecki, Stanislaw"]
[WhiteFideId "25600362"]
[BlackFideId "1102990"]
[WhiteElo "2118"]
[BlackElo "2088"]
[Result "0-1"]
[Round "05"]
[TimeControl "180+2"]
[Date "2023.04.18"]
[WhiteClock "0:01:19"]
[BlackClock "0:00:52"]

1. d4 {[%clk 0:02:56]}  Nf6 {[%clk 0:02:59]} 2. c4 {[%clk 0:02:54]}  g6 {[%clk 0:02:59]} 3. Nc3 {[%clk 0:02:52]}  Bg7 {[%clk 0:02:59]} 4. e4 {[%clk 0:02:52]}  d6 {[%clk 0:02:59]} 5. h3 {[%clk 0:02:51]}  O-O {[%clk 0:02:58]} 6. Be3 {[%clk 0:02:51]}  e5 {[%clk 0:02:58]} 7. d5 {[%clk 0:02:51]}  Nh5 {[%clk 0:02:54]} 8. g3 {[%clk 0:02:47]}  a5 {[%clk 0:02:53]} 9. Be2 {[%clk 0:02:47]}  Nf6 {[%clk 0:02:51]} 10. h4 {[%clk 0:02:45]}  h5 {[%clk 0:02:48]} 11. Nf3 {[%clk 0:02:42]}  Ng4 {[%clk 0:02:47]} 12. Bg5 {[%clk 0:02:40]}  f6 {[%clk 0:02:46]} 13. Bd2 {[%clk 0:02:39]}  Na6 {[%clk 0:02:46]} 14. a3 {[%clk 0:02:37]}  Nc5 {[%clk 0:02:46]} 15. b4 {[%clk 0:02:35]}  axb4 {[%clk 0:02:45]} 16. axb4 {[%clk 0:02:35]}  Rxa1 {[%clk 0:02:46]} 17. Qxa1 {[%clk 0:02:34]}  Nb3 {[%clk 0:02:46]} 18. Qb2 {[%clk 0:02:31]}  Nxd2 {[%clk 0:02:40]} 19. Nxd2 {[%clk 0:02:32]}  Bh6 {[%clk 0:02:37]} 20. O-O {[%clk 0:02:23]}  f5 {[%clk 0:02:32]} 21. c5 {[%clk 0:02:20]}  f4 {[%clk 0:02:29]} 22. Nc4 {[%clk 0:02:10]}  fxg3 {[%clk 0:02:26]} 23. fxg3 {[%clk 0:02:11]}  Ne3 {[%clk 0:02:16]} 24. Nxe3 {[%clk 0:02:01]}  Bxe3+ {[%clk 0:02:15]} 25. Kg2 {[%clk 0:02:02]}  dxc5 {[%clk 0:02:07]} 26. bxc5 {[%clk 0:02:01]}  Rxf1 {[%clk 0:02:00]} 27. Bxf1 {[%clk 0:02:01]}  Bxc5 {[%clk 0:01:50]} 28. Nb5 {[%clk 0:02:00]}  Qd7 {[%clk 0:01:40]} 29. Kh2 {[%clk 0:01:50]}  Bd6 {[%clk 0:01:29]} 30. Na7 {[%clk 0:01:41]}  Qf7 {[%clk 0:01:18]} 31. Nxc8 {[%clk 0:01:32]}  Qxf1 {[%clk 0:01:17]} 32. Nxd6 {[%clk 0:01:32]}  cxd6 {[%clk 0:01:16]} 33. Qxb7 {[%clk 0:01:27]}  Qe2+ {[%clk 0:01:11]} 34. Kh3 {[%clk 0:01:27]}  Qxe4 {[%clk 0:00:56]} 35. Qb8+ {[%clk 0:01:25]}  Kg7 {[%clk 0:00:56]} 36. Qc7+ {[%clk 0:01:20]}  Kh6 {[%clk 0:00:53]} 37. Qxd6 {[%clk 0:01:19]}  Qh1# {[%clk 0:00:52]} 0-1


[Site "https://www.chess.com"]

[Event "Titled Tuesday Blitz April 18 Early 2023"]
[White "Andreikin, Dmitry"]
[Black "Timofeev, Artyom"]
[WhiteFideId "4158814"]
[BlackFideId "4140419"]
[WhiteElo "2736"]
[BlackElo "2586"]
[Result "1/2-1/2"]
[Round "06"]
[TimeControl "180+2"]
[Date "2023.04.18"]
[WhiteClock "0:01:07"]
[BlackClock "0:01:28"]

1. Nf3 {[%clk 0:03:00]}  c5 {[%clk 0:02:58]} 2. c4 {[%clk 0:02:59]}  Nf6 {[%clk 0:02:57]} 3. Nc3 {[%clk 0:02:58]}  Nc6 {[%clk 0:02:54]} 4. g3 {[%clk 0:02:56]}  d5 {[%clk 0:02:52]} 5. cxd5 {[%clk 0:02:56]}  Nxd5 {[%clk 0:02:52]} 6. Bg2 {[%clk 0:02:56]}  Nc7 {[%clk 0:02:52]} 7. a3 {[%clk 0:02:55]}  g6 {[%clk 0:02:46]} 8. b4 {[%clk 0:02:53]}  cxb4 {[%clk 0:02:41]} 9. axb4 {[%clk 0:02:54]}  Bg7 {[%clk 0:02:35]} 10. O-O {[%clk 0:02:53]}  O-O {[%clk 0:02:35]} 11. Ba3 {[%clk 0:02:46]}  a6 {[%clk 0:02:29]} 12. Rc1 {[%clk 0:02:42]}  Nb5 {[%clk 0:02:25]} 13. Bb2 {[%clk 0:02:38]}  Nxb4 {[%clk 0:02:22]} 14. Qb3 {[%clk 0:02:37]}  Nxc3 {[%clk 0:02:18]} 15. Bxc3 {[%clk 0:02:35]}  Bxc3 {[%clk 0:02:13]} 16. Rxc3 {[%clk 0:02:29]}  a5 {[%clk 0:02:10]} 17. h4 {[%clk 0:02:22]}  Be6 {[%clk 0:02:06]} 18. Qb2 {[%clk 0:02:22]}  h6 {[%clk 0:01:58]} 19. d3 {[%clk 0:02:08]}  Qd6 {[%clk 0:01:53]} 20. h5 {[%clk 0:01:52]}  g5 {[%clk 0:01:52]} 21. Nd2 {[%clk 0:01:51]}  Rac8 {[%clk 0:01:44]} 22. Ne4 {[%clk 0:01:44]}  Qb6 {[%clk 0:01:42]} 23. Kh2 {[%clk 0:01:35]}  Rxc3 {[%clk 0:01:39]} 24. Qxc3 {[%clk 0:01:26]}  Rc8 {[%clk 0:01:36]} 25. Qe5 {[%clk 0:01:26]}  Nc6 {[%clk 0:01:35]} 26. Qa1 {[%clk 0:01:21]}  Qd4 {[%clk 0:01:31]} 27. Qa3 {[%clk 0:01:18]}  Qb4 {[%clk 0:01:28]} 28. Qa1 {[%clk 0:01:16]}  Qd4 {[%clk 0:01:28]} 29. Qa3 {[%clk 0:01:13]}  Qb4 {[%clk 0:01:28]} 30. Qa1 {[%clk 0:01:07]}  Qd4 {[%clk 0:01:28]} 1/2-1/2


[Site "https://www.chess.com"]